Cogmind - Beta 16 @@@ ROGUE MODE // 2025.12.06 @ 23:18:53 Player: Clortox Result: Destroyed by as-34593 with Assembled Maul Performance ------------- Evolutions (0) 0 Regions Visited (2) 400 Robots Destroyed (22) 110 Value Destroyed (314) 314 Prototype IDs (0) 0 Alien Tech Used (0) 0 Bonus (0) 0 TOTAL SCORE: 824 Bonus ------- None Cogmind --------- Core Integrity 0/250 Matter 150/300 Energy 100/100 System Corruption 9% Temperature Cool (0) Movement Core (1350) Ox26 Location -10/Mines Parts ------- > --- POWER (1) -------- (None) > --- PROPULSION (2) --- (None) > --- UTILITY (2) ------ Huge Storage Unit > --- WEAPON (2) ------- (None) > --- INVENTORY (25) --- Light Treads Aluminum Leg Aluminum Leg Flight Unit Sensor Array Terrain Scanner Terrain Scan Processor Light Assault Rifle EMP Blaster Peak State ------------ > --- POWER ------------ Light Ion Engine > --- PROPULSION ------- Light Treads Light Treads > --- UTILITY ---------- Small Storage Unit Sensor Array > --- WEAPON ----------- Assault Rifle Grenade Launcher > --- INVENTORY -------- Light Ion Engine Light Ion Engine Aluminum Leg Aluminum Leg Flight Unit Terrain Scan Processor Light Assault Rifle EMP Blaster [Rating: 8] Favorites ----------- Power Light Ion Engine Engine Light Ion Engine Propulsion Light Treads Treads Light Treads Leg Aluminum Leg Wheel Compact Wheel Utility Small Storage Unit Device Sensor Array Storage Small Storage Unit Weapon Grenade Launcher Ballistic Gun Assault Rifle Launcher Grenade Launcher Build | -11 -10 -10 ------- Run | Yrd Mat Min Slots Evolved . | . . . Power . | . . . Propulsion . | . . . Utility . | . . . Weapon . | . . . Parts Attached 19 | 6 11 2 Power 4 | 1 2 1 Engine 4 | 1 2 1 Core . | . . . Reactor . | . . . Propulsion 6 | 2 4 . Treads 2 | 2 . . Leg 2 | . 2 . Wheel 2 | . 2 . Hover . | . . . Flight . | . . . Utility 5 | 1 3 1 Device 3 | . 2 1 Storage 2 | 1 1 . Processor . | . . . Hackware . | . . . Protection . | . . . Artifact . | . . . Weapon 4 | 2 2 . Energy Gun . | . . . Energy Cannon . | . . . Ballistic Gun 3 | 2 1 . Ballistic Cannon . | . . . Launcher 1 | . 1 . Special Weapon . | . . . Impact Weapon . | . . . Slashing Weapon . | . . . Piercing Weapon . | . . . Special Melee Weapon . | . . . Unidentified Prototypes . | . . . Parts Lost 7 | . 2 5 Power 2 | . 1 1 Propulsion 2 | . 1 1 Utility 1 | . . 1 Weapon 2 | . . 2 Highest Loss Streak 5 | . 2 5 To Critical Strikes . | . . . Average Backups 7 | 3 8 9 Power 1 | . 1 . Propulsion 2 | 1 3 4 Utility 1 | . 1 3 Weapon 2 | 1 2 2 Tool/Special . | . . . Unused Backups 4 | . 1 3 Power . | . . . Propulsion 1 | . . 1 Utility 1 | . . 1 Weapon 2 | . 1 1 Tool/Special . | . . . Average Slot Usage (%) 95 | . 96 81 Engine 13 | . 14 11 Treads 15 | . 16 . Leg 2 | . 2 . Wheel 9 | . 7 22 Device 11 | . 11 12 Storage 14 | . 14 14 Ballistic Gun 13 | . 14 10 Launcher 13 | . 13 10 Peak Build Rating 8 | 6 8 8 Average Rating 7 | 5 7 6 On Entrance 4 | . 6 8 Avg Prop Armor Cover (%) 25 | 25 . . Naked Turns . | . . . Heaviest Build 90 | 10 89 90 Greatest Support 40 | 40 40 26 Greatest Overweight (x) 27 | 3 5 27 Average Overweight (x) 1 | 2 1 4 Largest Inventory Capacity 25 | 8 25 25 Average Capacity 14 | 7 14 25 Most Carried 10 | 5 10 10 Average Carried 7 | 3 8 9 Final Capacity 25 | 8 25 25 Final Carried 10 | 5 10 9 Class Distribution -------------------- 100% | Mutant Dominant Class ---------------- Mutant | -10/Materials Mutant | -10/Mines Resources | -11 -10 -10 ----------- Run | Yrd Mat Min Matter Collected 463 | 277 142 44 Remotely . | . . . Salvage Created 407 | 117 273 17 Parts 27 | 6 21 . Haulers Intercepted . | . . . Recyclers Shooed 1 | . 1 . Parts Field Recycled . | . . . Retrieved Matter . | . . . Parts Self-Destructed . | . . . Prevented . | . . . Parts Restored . | . . . Kills | -11 -10 -10 ------- Run | Yrd Mat Min Combat Hostiles Destroyed 12 | . 9 3 Melee 1 | . 1 . Guns 2 | . 2 . AOE 9 | . 6 3 Classes Destroyed 9 | 3 5 1 Worker 4 | 2 2 . Builder 1 | . 1 . Tunneler 2 | 1 1 . Recycler 2 | 1 1 . Operator 1 | . 1 . Watcher 3 | . 3 . Swarmer 6 | . 6 . Grunt 3 | . 3 . Assembled 3 | . . 3 Best Kill Streak 4 | 2 4 3 Combat Bots Only 3 | . 3 3 Max Kills in Single Turn 2 | 1 2 1 Gunslinging . | . . . Exploded 2 | . 2 1 Melee 1 | . 1 . Uniques/NPCs Destroyed . | . . . Combat | -11 -10 -10 -------- Run | Yrd Mat Min Hostile Shots Fired 60 | . 29 31 Missed 12 | . 7 5 Hits 48 | . 22 26 Melee 23 | . . 23 Projectile 25 | . 22 3 Critical Strikes 1 | . 1 . Part Disruptions 1 | . . 1 Damage Taken 1066 | 2 441 623 Core 260 | . 157 103 Absorbed by Shields . | . . . Core Remaining (%) 100 | 100 . . Volleys Fired 40 | 11 24 5 Largest 2 | 2 1 1 Hottest 40 | 40 30 30 Shots Fired 51 | 22 24 5 Gun 32 | 22 8 2 Cannon . | . . . Launcher 19 | . 16 3 Special . | . . . Kinetic 32 | 22 8 2 Thermal . | . . . Explosive 19 | . 16 3 Electromagnetic . | . . . Robot Hit Streak 4 | 4 4 2 Robot Miss Streak 2 | 2 2 1 Penetration Max . | . . . Secondary Targets . | . . . Shots Hit Robots 22 | 12 7 3 Core Hits 38 | 7 23 8 Critical Kills . | . . . Critical Parts Destroyed . | . . . Critical Strikes . | . . . Melee Attacks . | . . . Impact . | . . . Slashing . | . . . Piercing . | . . . Sneak Attacks . | . . . Combat Hostiles . | . . . Follow-up Attacks . | . . . Damage Inflicted 1370 | 103 991 276 Guns 200 | 99 78 23 Cannons . | . . . Explosions 1139 | . 891 248 Melee . | . . . Ramming 31 | 4 22 5 Kinetic 200 | 99 78 23 Thermal 173 | . 173 . Explosive 966 | . 718 248 Electromagnetic . | . . . Impact . | . . . Slashing . | . . . Piercing . | . . . Highest Corruption 9 | . . 9 Average Corruption 5 | . . 5 Corruption Purged . | . . . Corruption Blocked . | . . . Effects 2 | . . 2 Parts Rejected 2 | . . 2 Overload Shots . | . . . Overflow Damage 33 | . 25 8 Projectiles . | . . . Explosions 33 | . 25 8 Melee . | . . . Knockbacks . | . . . Impact . | . . . Kinetic . | . . . Secondary . | . . . Self-Inflicted Damage 84 | 2 41 41 Shots 4 | . 2 2 Rammed 9 | 2 5 2 Targets Rammed 11 | 2 7 2 Kicked 1 | . 1 . Crushed 1 | . 1 . Highest Temperature 16 | . 16 15 Average Temperature 8 | . 7 10 Received Heat Transfer 84 | . 24 60 Siege Activations . | . . . Martial Activations . | . . . Shielding Activations . | . . . Robots Disrupted . | . . . Combat Hostiles . | . . . Robots Corrupted . | . . . Combat Hostiles . | . . . Parts Fried . | . . . Impact Corruptions . | . . . Robots Melted . | . . . Combat Hostiles . | . . . Parts Melted 2 | . 2 . Heat Transferred 150 | . 150 . Parts Sabotaged . | . . . Parts Stolen . | . . . Parts Stripped . | . . . Power Chain Reactions . | . . . Alert | -11 -10 -10 ------- Run | Yrd Mat Min Maximum Alert Level . | . . . Low Security (%) 100 | 100 100 100 Level 1 . | . . . Level 2 . | . . . Level 3 . | . . . Level 4 . | . . . Level 5 . | . . . High Security . | . . . Max Security . | . . . Peak Influence 178 | 5 178 18 Initial . | . . . Average 65 | . 79 . Influence Increases 476 | 20 438 18 Destroy 0b10 Robot/C 180 | . 180 . Destroy 0b10 Robot/NC 65 | 20 45 . Destroy Leader 36 | . 36 . Disable Machine 60 | . 60 . Destroy Structure 135 | . 117 18 Influence Decreases 476 | 20 438 18 Time Decay 438 | 20 418 . Lost Part 38 | . 20 18 Squads Dispatched 1 | . 1 . Investigation . | . . . Extermination . | . . . Reinforcement 1 | . 1 . Assault . | . . . Garrison . | . . . Intercept . | . . . Searches Triggered . | . . . Construction Impeded . | . . . Haulers Reinforced . | . . . Active Scanning Responses . | . . . Cargo Convoy Interrupts . | . . . Stealth | -11 -10 -10 --------- Run | Yrd Mat Min Distress Signals 2 | . 2 . Communications Jammed . | . . . Distress Signals . | . . . Times Spotted 23 | . 16 7 Peak Tracking Total 7 | . 4 7 Tactical Retreats 1 | . . 1 Traps | -11 -10 -10 ------- Run | Yrd Mat Min Traps Triggered 2 | . 2 . Indirectly . | . . . Trap Hack Attempts . | . . . Triggered . | . . . Disarmed . | . . . Reprogrammed . | . . . Reused . | . . . Traps Extracted . | . . . Installed . | . . . Triggered . | . . . Machines | -11 -10 -10 ---------- Run | Yrd Mat Min Machines Disabled 4 | . 4 . Max in Single Turn 2 | . 2 . Machines Repaired . | . . . Machines Dismantled . | . . . Machines Sabotaged . | . . . Overloaded Fab Kills . | . . . Hacking | -11 -10 -10 --------- Run | Yrd Mat Min Machines Accessed 1 | . 1 . Terminals 1 | . 1 . Fabricators . | . . . Repair Stations . | . . . Recycling Units . | . . . Scanalyzers . | . . . Garrison Access . | . . . Total Hacks 1 | . 1 . Successful 1 | . 1 . Failed . | . . . Catastrophic . | . . . Database Lockouts . | . . . Manual . | . . . Terminals 1 | . 1 . Fabricators . | . . . Repair Stations . | . . . Recycling Units . | . . . Scanalyzers . | . . . Garrison Access . | . . . Terminal Hacks 1 | . 1 . Alert Level 1 | . 1 . Fabricator Hacks . | . . . Repair Station Hacks . | . . . Recycling Unit Hacks . | . . . Scanalyzer . | . . . Garrison Access Hacks . | . . . Unauthorized Hacks . | . . . Terminals . | . . . Fabricators . | . . . Repair Stations . | . . . Recycling Units . | . . . Scanalyzers . | . . . Garrison Access . | . . . Data Cores Recovered . | . . . Used . | . . . Hacking Detections . | . . . Full Trace Events . | . . . Feedback Events . | . . . Feedback Blocked . | . . . Robot Schematics Acquired . | . . . Robots Built . | . . . Authchips . | . . . Time . | . . . Total Robot Build Rating . | . . . Part Schematics Acquired . | . . . Parts Built . | . . . Authchips . | . . . Time . | . . . Total Part Build Rating . | . . . Part Studies Acquired . | . . . Parts Repaired . | . . . Time . | . . . Parts Recycled . | . . . Recycled Matter . | . . . Retrieved Matter . | . . . Retrieved Components . | . . . Parts Scanalyzed . | . . . Part Schematics Acquired . | . . . Parts Damaged . | . . . Bothacking | -11 -10 -10 ------------ Run | Yrd Mat Min Used RIF Installer . | . . . Robots Hacked . | . . . Non-combat . | . . . Combat . | . . . Robot Hacks Applied . | . . . Relay Couplers Released . | . . . Fabnet Peak Effective % . | . . . Robots Rewired . | . . . Allies Hacked . | . . . Hacks Repelled . | . . . Allies | -11 -10 -10 -------- Run | Yrd Mat Min Total Allies . | . . . Largest Group . | . . . Highest-Rated Group . | . . . Highest-Rated Ally . | . . . Total Orders . | . . . Ally Attacks . | . . . Total Damage . | . . . Kills . | . . . Allies Corrupted . | . . . Allies Melted . | . . . Intel | -11 -10 -10 ------- Run | Yrd Mat Min Active Infowar (turns) 1472 | . 1350 122 Sensors 940 | . 940 . Terrain 466 | . 410 56 ECM 66 | . . 66 Robot Analysis Total . | . . . Derelict Logs Recovered . | . . . Drone Launches . | . . . Drone Recoveries . | . . . Exploration | -11 -10 -10 ------------- Run | Yrd Mat Min Turns Passed 2047 | 219 1686 142 Spaces Moved 1164 | 101 991 72 Core 101 | 98 . 3 Treads 573 | 3 570 . Legs 62 | . 62 . Wheels 428 | . 359 69 Hover . | . . . Flight . | . . . Fastest Speed 50 | 50 120 135 Average Speed 161 | 169 158 188 Slowest Speed 1400 | 200 400 1400 Overloaded Moves . | . . . Propulsion Burnouts . | . . . Robots Hopped . | . . . Potential Cave-ins . | . . . Cave-ins Triggered . | . . . Exploration Rate (%) 39 | 5 94 18 Regions Visited 2 Branch Regions 1 Pre-discovered Areas . | . . . Known Exits Taken . | . . . Unknown Exits Taken 2 | 1 1 . Scrap Searched 1 | . . 1 Spaces Dug . | . . . Terrain Destroyed 151 | . 123 28 Melee . | . . . Projectile . | . . . AOE 151 | . 123 28 Terrain Rammed . | . . . Walls Destroyed . | . . . Machines Disabled . | . . . Actions | -11 -10 -10 --------- Run | Yrd Mat Min Total 1286 | 130 1075 81 Wait 21 | . 21 . Move 1162 | 100 990 72 Hop . | . . . Pick Up 20 | 11 9 . Fast Attach 5 | . 5 . Attach 11 | 6 4 1 Detach 2 | . 2 . Swap 8 | . 7 1 Drop 6 | . 6 . Fire 40 | 11 24 5 Melee . | . . . Ram 4 | 2 . 2 Kick 1 | . 1 . Crush 6 | . 6 . Escape Stasis . | . . . Rewire . | . . . Trap . | . . . Miscellaneous . | . . . Route ------- -11/Scrapyard -10/Materials (discovered 4 exits: [*Mat x3] / [*Min]) -10/Mines History --------- Turn | Location | Event 10 | -11/Scrapyard | Discovered new exit (range 14) 220 | -11/Scrapyard | Entered Materials 306 | -10/Materials | Build established: Mutant 441 | -10/Materials | Discovered new exit (range 4) 561 | -10/Materials | Discovered new exit (range 12) 611 | -10/Materials | Discovered new exit (range 16) 1229 | -10/Materials | Core integrity fell below 50% 1469 | -10/Materials | Discovered new exit (range 8) 1906 | -10/Materials | Entered Mines 1961 | -10/Mines | Assembled infested the area 2023 | -10/Mines | Core integrity fell below 20% 2048 | -10/Mines | Destroyed by as-34593 with Assembled Maul Last Messages --------------- 02023_ Knocked back. 02026_ U-05 Engineer lays Concrete. 02027_ The unstable cave ceiling collapses. 02027_ U-05 Engineer lays Concrete. 02027_ as-22001 sneak attacks. 02027_ R-06 Scavenger knocked back. 02027_ U-05 Engineer system corrupted by crushing effect. 02027_ U-05 Engineer destroyed. 02028_ ECM Suite destroyed. 02028_ System corrupted by crushing effect (+5). 02030_ System corrupted: Lgt. Ion Engine rejected. 02035_ R-06 Scavenger collects Corrupted Wheel. 02038_ R-06 Scavenger collects Corrupted Welding Torch. 02046_ as-22001 sneak attacks. 02046_ R-06 Scavenger system corrupted by crushing effect. 02046_ R-06 Scavenger knocked back. Map ----- +----------------------------------------------------+ | ?????????????????????????????????????????????????? | | ?????????????????????????????????????????????????? | | ?????????????????????????????????????????????????? | | ?????????????????????????????????????????????????? | | ?????????????????????????????????????????????????? | | ?????????????????????????????????????????????????? | | ?????????????????????????????????????????????????? | | ?????????????????????????????????????????????????? | | ?????????????????????????????????????????????????? | | ?????????????????????????????????????????????????? | | ?????????????????????????????????????????????????? | | ?????????????????????????????????????????????????? | | ?????????????????????????????????????????????????? | | ?????????????????????????????????????????????????? | | ?????????????????????????????????????????????????? | | ?????????????????????????????????????????????????? | | ?????????????????????????????????????????????????? | | ?????????????????????????????????????????????????? | | ?????????????????????????????????????????????????? | | ??????????????????????????????????????????#??????? | | ????????????????????????????????????????? #??????? | | ????????????????????????????????????????? #??????? | | ??????????? ???????????????????#####? #??????? | | ?????????? ???????????##### ## #######? | | ??????????# ######## # ## | | ????????????# @a* = a r #??????? | | ?????????????????## a % #??????? | | ??????????????????## ####### ## ####??????? | | ???????????????????## ??????# ###?????????? | | ????????????????????# ??????# ##???????????? | | ????????????????????# ??####### #####????????????? | | ????????????????????#???# #????????????????? | | ????????????????????????# #######????????????????? | | ????????????????#???????# ##????#????????????????? | | ????????????#?????????#?# #??????#???????????????? | | ????????????????##??????# #???????#??????????????? | | ????????????????# ??????# #??????????????????????? | | ????????????????# ?????# #??????????????????????? | | ????????????????# ????#!#???????#??????????????? | | ?????????????????# #???# #???###????????????????? | | ?????????????????# #??# #??# ##???????????????? | | ?????????????????# ### #?# #???????????????? | | ????????????????## ## #???????????????? | | ????????????????## #????????????????? | | ????????????????# ####???#????????????? | | ????????? #########????????????? | | ???????? # #?????????????? | | ????????? ## #???????????? | | ????????? ## ## #### ??????? | | ??????????????## #??? ????? | +----------------------------------------------------+ Best States ------------- Heat Dissipation 25 Energy Generation 10 Energy Capacity 250 Matter Stores 300 Matter Capacity 300 Sight Range 16 Robot Scan Range 14 Terrain Scan Range 14 Terrain Scan Density 10 ECM Strength 1 Evasion (%) 55 Recoil Reduction 2 Item Schematics ----------------- None Robot Schematics ------------------ None Fabricated ------------ Nothing Repaired ---------- Nothing Studied --------- None Alien Tech Used ----------------- None Achievements -------------- I Have A Map? Physics Hates This One Trick Challenges ------------ None Game ------ Seed SniperJunkLance Manual? 0 Play Time 00:26:12 Cumulative 3.6 hours Start 2025.12.06 @ 22:54:10 End 2025.12.06 @ 23:18:53 Sessions 1 Manual Loads 0 Difficulty Rogue Special Mode None Game No. 9 Rogue 9 Adventurer 0 Explorer 0 Win Type - Total 0 Types 0/0/0/0/0/0/0/0/0/0 Lore% 2 Gallery% 4 Achievement% 4 Wizard Run 0 Options --------- Layout 2 ASCII 0 Keyboard 0 Movement Arrows Keybinds 0 Fullscreen 1 Font 32/SmallcapsGlow Map View 50x49 Zoom Use 0% Tactical HUD 1 Map Filters NONE Filters NONE Steam 1 RUN: ff35532d-d0f8-471b-8e5b-8c25e74a46ce